bitfinex/quotes_ETHUSD_20230110
["timestamp","ask_amount","ask_price","bid_price","bid_amount"]
[1673320028871,33.3930526,1321.5,1321.4,0.04457249]
[1673320029090,33.40018027,1321.5,1321.4,0.04457249]
[1673320029290,33.96788027,1321.5,1321.4,0.04457249]
[1673320029709,33.96864599,1321.5,1321.4,0.04457249]
[1673320030044,30.7496122,1321.5,1321.4,0.04457249]
[1673320031959,32.99930095,1321.5,1321.4,0.04457249]
[1673320033241,32.99905416,1321.5,1321.4,0.04457249]
[1673320033890,30.7496122,1321.5,1321.4,0.04457249]
[1673320035544,25.43173236,1321.5,1321.4,0.04457249]
[1673320035869,17.86458236,1321.5,1321.4,0.04457249]
[1673320036603,17.43824604,1321.5,1321.4,0.04457249]
[1673320037154,25.00539604,1321.5,1321.4,0.04457249]
[1673320037365,25.43173236,1321.5,1321.4,0.04457249]
[1673320037598,25.43173236,1321.5,1321.3,0.07759952]
[1673320037791,10.37903427,1321.4,1321.3,0.07759952]
[1673320037961,14.02611093,1321.4,1321.3,0.07759952]
[1673320038323,6.45838093,1321.4,1321.3,0.07759952]
[1673320038699,2.87730427,1321.4,1321.3,0.07759952]
[1673320038914,1.12453229,1321.4,1321.3,0.07759952]
[1673320040215,2.81130427,1321.4,1321.3,0.07759952]
[1673320040378,1.12453229,1321.4,1321.3,15.21419952]
[1673320040586,1.12453229,1321.4,1321.3,0.14359952]
[1673320040812,1.12453229,1321.4,1321.3,15.21419952]
[1673320041038,1.12453229,1321.4,1321.3,15.28019952]
[1673320041324,1.12453229,1321.4,1321.3,0.14359952]
[1673320041539,1.12453229,1321.4,1321.3,0.07759952]
[1673320042614,1.12453229,1321.4,1321.3,7.64589952]
[1673320042915,1.12453229,1321.4,1321.3,0.14359952]
[1673320043306,1.12453229,1321.4,1321.3,7.64589952]
[1673320043578,1.12453229,1321.4,1321.3,0.14359952]
[1673320043770,1.12453229,1321.4,1321.3,0.07759952]
[1673320045700,8.69226229,1321.4,1321.3,0.07759952]
[1673320045913,8.75826229,1321.4,1321.3,0.07759952]
[1673320046702,8.80826229,1321.4,1321.3,0.07759952]
[1673320046919,8.75826229,1321.4,1321.3,0.07759952]
[1673320050382,16.32599229,1321.4,1321.3,0.07759952]
[1673320050591,9.18459861,1321.4,1321.3,0.07759952]
[1673320050847,8.75826229,1321.4,1321.3,0.07759952]
[1673320053488,10.44503427,1321.4,1321.3,0.07759952]
[1673320053795,14.19497983,1321.4,1321.3,0.07759952]
[1673320054013,21.76270983,1321.4,1321.3,0.07759952]
[1673320054187,21.06451386,1321.4,1321.3,0.07759952]
[1673320054388,22.8874477,1321.4,1321.3,0.07759952]
[1673320054833,23.31378402,1321.4,1321.3,0.07759952]
[1673320055025,22.8874477,1321.4,1321.3,0.07759952]
[1673320056057,23.31378402,1321.4,1321.3,0.07759952]
[1673320057149,21.06451386,1321.4,1321.3,0.07759952]
[1673320057336,20.63817754,1321.4,1321.3,0.07759952]
[1673320057970,21.06451386,1321.4,1321.3,0.07759952]
[1673320058895,23.31378402,1321.4,1321.3,0.07759952]
[1673320061672,21.62701204,1321.4,1321.3,0.07759952]
[1673320061885,22.88900332,1321.4,1321.3,0.07759952]
[1673320062061,22.88900356,1321.4,1321.3,0.07759952]
[1673320062272,21.20067572,1321.4,1321.3,0.07481923]
[1673320062683,22.88901236,1321.4,1321.3,0.07481923]
[1673320063119,21.20067572,1321.4,1321.3,0.07481923]
[1673320063757,22.88908552,1321.4,1321.3,0.07481923]
[1673320064538,21.62701204,1321.4,1321.3,0.07481923]
[1673320067019,21.20067572,1321.4,1321.3,0.07481923]
[1673320067767,21.62701204,1321.4,1321.3,0.07481923]
[1673320067978,21.20067572,1321.4,1321.3,0.07481923]
[1673320068195,24.01348586,1321.4,1321.3,0.07481923]
[1673320069373,13.63294572,1321.4,1321.3,0.07481923]
[1673320069584,15.32156206,1321.4,1321.3,0.07481923]
[1673320069746,13.63294572,1321.4,1321.3,0.07481923]
[1673320069956,6.06521572,1321.4,1321.3,0.07481923]
[1673320070513,7.75383396,1321.4,1321.3,0.07481923]
[1673320070916,4.0038884,1321.4,1321.3,0.07481923]
[1673320071133,9.25634824,1321.4,1321.3,0.07481923]
[1673320071323,9.32234824,1321.4,1321.3,0.07481923]
[1673320071531,11.5716184,1321.4,1321.3,0.07481923]
[1673320071986,9.32234824,1321.4,1321.3,0.07481923]
[1673320072156,16.89007824,1321.4,1321.3,0.07481923]
[1673320074334,10.44784344,1321.4,1321.3,0.07481923]
[1673320074474,8.7592252,1321.4,1321.3,0.07481923]
[1673320074679,10.44784344,1321.4,1321.3,0.07481923]
[1673320074946,8.7592252,1321.4,1321.3,0.07481923]
[1673320076314,10.44784344,1321.4,1321.3,0.07481923]
[1673320076525,9.32234824,1321.4,1321.3,0.07481923]
[1673320076746,20.75224221,1321.4,1321.3,0.07481923]
[1673320077367,23.00151237,1321.4,1321.3,0.07481923]
[1673320077677,23.05151237,1321.4,1321.3,0.07481923]
[1673320077839,23.00151237,1321.4,1321.3,0.07481923]
[1673320078380,20.75224221,1321.4,1321.3,0.07481923]
[1673320078575,13.18451221,1321.4,1321.3,0.07481923]
[1673320078785,9.32234824,1321.4,1321.3,0.07481923]
[1673320078996,19.1393484,1321.4,1321.3,0.07481923]
[1673320080166,26.7070784,1321.4,1321.3,0.07481923]
[1673320080382,27.13341472,1321.4,1321.3,0.07481923]
[1673320081365,27.13234925,1321.4,1321.3,0.07481923]
[1673320081559,30.1204149,1321.4,1321.3,0.07481923]
[1673320081880,31.80807406,1321.4,1321.3,0.07481923]
[1673320082258,30.1204149,1321.4,1321.3,0.07481923]
[1673320084057,32.93322504,1321.4,1321.3,0.07481923]
[1673320084266,30.1204149,1321.4,1321.3,0.07481923]
[1673320084693,22.5526849,1321.4,1321.3,0.07481923]
[1673320084904,24.93915872,1321.4,1321.3,0.07192264]
[1673320085511,32.50688872,1321.4,1321.3,0.07192264]
[1673320085928,25.36549504,1321.4,1321.3,0.07192264]
[1673320088507,32.93322504,1321.4,1321.3,0.07192264]
[1673320090049,25.36549504,1321.4,1321.3,0.07192264]
[1673320090261,24.93915872,1321.4,1321.3,0.07192264]
[1673320090497,32.93322504,1321.4,1321.3,0.07192264]
[1673320091345,30.68395488,1321.4,1321.3,0.07192264]
[1673320092675,31.24426371,1321.4,1321.3,0.04994143]
[1673320093482,31.81206371,1321.4,1321.3,0.04994143]
[1673320093601,31.24426371,1321.4,1321.3,0.04994143]
[1673320095562,27.87114474,1321.4,1321.3,0.04994143]
[1673320096813,34.1272016,1321.4,1321.3,0.04994143]
[1673320097230,31.31514474,1321.4,1321.3,0.04994143]
[1673320097817,34.12723374,1321.4,1321.3,0.04994143]
[1673320098281,31.31514474,1321.4,1321.3,0.04994143]
[1673320098440,34.12722346,1321.4,1321.3,0.04994143]
[1673320100336,32.40322346,1321.4,1321.3,0.04994143]
[1673320100809,9.70003346,1321.4,1321.3,0.04994143]
[1673320100975,19.73353872,1321.4,1321.3,0.04994143]
[1673320101389,27.30126872,1321.4,1321.3,0.04994143]
[1673320102294,29.55044809,1321.4,1321.3,0.04994143]
[1673320102469,29.97678441,1321.4,1321.3,0.04994143]
[1673320105542,29.97692978,1321.4,1321.3,0.04994143]
[1673320105856,34.65576224,1321.4,1321.3,0.04994143]
[1673320106087,35.22356224,1321.4,1321.3,0.04994143]
[1673320106370,34.65576224,1321.4,1321.3,0.04994143]
[1673320109160,32.4064375,1321.4,1321.3,0.04994143]
[1673320109370,32.4064375,1321.4,1321.3,0.0347008]
[1673320110271,34.65616256,1321.4,1321.3,0.0347008]
[1673320111002,32.4064375,1321.4,1321.3,0.0347008]
[1673320111523,34.65635717,1321.4,1321.3,0.0347008]
[1673320112264,32.4064375,1321.4,1321.3,0.0347008]
[1673320112964,19.5211163,1321.4,1321.3,0.0347008]
[1673320113152,26.66250998,1321.4,1321.3,0.0347008]
[1673320113617,22.55676758,1321.4,1321.3,0.0347008]
[1673320114117,30.12449758,1321.4,1321.3,0.0347008]
[1673320115095,32.9365763,1321.4,1321.3,0.0347008]
[1673320117268,32.93746327,1321.4,1321.3,0.0347008]
[1673320118225,30.6864375,1321.4,1321.3,0.0347008]
[1673320121097,27.87435878,1321.4,1321.3,0.0347008]
[1673320121625,30.68942461,1321.4,1321.3,0.0347008]
[1673320122531,27.87435878,1321.4,1321.3,0.0347008]
[1673320123166,30.68975237,1321.4,1321.3,0.0347008]
[1673320123623,30.68979235,1321.4,1321.3,0.0347008]
[1673320125434,27.87435878,1321.4,1321.3,0.02412481]
[1673320126188,30.68992791,1321.4,1321.3,0.02412481]
[1673320126336,27.87435878,1321.4,1321.3,0.02412481]
[1673320127629,31.24747775,1321.4,1321.3,0.02412481]
[1673320129223,35.10401942,1321.4,1321.3,0.01118326]
[1673320129435,40.89381942,1321.4,1321.3,0.00311144]
[1673320129602,47.83510163,1321.4,1321.3,0.00311144]
[1673320129820,43.89381942,1321.4,1321.3,0.00311144]
[1673320130173,54.17461942,1321.4,1321.3,0.00311144]
[1673320130744,58.11329007,1321.4,1321.3,0.00311144]
[1673320133850,56.39529007,1321.4,1321.3,0.00311144]
[1673320135954,56.62529007,1321.4,1321.3,0.00311144]
[1673320136148,52.68661942,1321.4,1321.3,0.00311144]
[1673320136477,2.5,1321.3,1321.2,0.0952144]
[1673320136639,47.66430003,1321.3,1321.2,0.0952144]
[1673320136848,47.73030003,1321.3,1321.2,0.0952144]
[1673320137093,43.7943589,1321.3,1321.2,0.0952144]
[1673320137269,52.2775589,1321.3,1321.2,0.0952144]
[1673320137932,56.21350003,1321.3,1321.2,0.0952144]
[1673320138638,52.2775589,1321.3,1321.2,0.0952144]
[1673320139082,55.64837968,1321.3,1321.2,0.0952144]
[1673320139287,55.87837968,1321.3,1321.2,0.04415895]
[1673320140258,55.88415448,1321.3,1321.2,0.04415895]
[1673320140480,2.5,1321.2,1321.1,0.07382242]
[1673320140786,36.99302241,1321.2,1321.1,0.07382242]
[1673320140967,37.05902241,1321.2,1321.1,0.07382242]
[1673320141493,40.42984319,1321.2,1321.1,0.07382242]
[1673320142852,37.05902241,1321.2,1321.1,0.07382242]
[1673320143728,40.42984319,1321.2,1321.1,0.07382242]
[1673320146833,43.92984319,1321.2,1321.1,0.07382242]
[1673320147093,43.92984319,1321.2,1321.1,2.42e-06]
[1673320147269,53.22271319,1321.2,1321.0,0.08302703]
[1673320147481,8.75462292,1321.1,1321.0,0.08302703]
[1673320147710,35.79106469,1321.1,1321.0,0.08302703]
[1673320150195,35.79106469,1321.1,1321.0,0.03865182]
[1673320150443,41.57725951,1321.1,1320.9,0.09912796]
[1673320150639,41.57725951,1321.1,1320.8,0.10473874]
[1673320150640,30.28236,1320.9,1320.8,0.10473874]
[1673320150865,30.28236,1320.9,1320.7,0.84319561]
[1673320150866,2.5,1320.8,1320.7,0.84319561]
[1673320151082,33.10053715,1320.8,1320.7,0.84319561]
[1673320151245,39.2402244,1320.8,1320.7,0.84319561]
[1673320151454,45.0519335,1320.8,1320.7,0.84319561]
[1673320151774,40.42869893,1320.8,1320.7,0.84319561]
[1673320152104,22.0129838,1320.8,1320.7,0.84319561]
[1673320152673,6.8706638,1320.8,1320.7,0.84319561]
[1673320152868,4.76162013,1320.8,1320.7,0.84319561]
[1673320153025,4.69562013,1320.8,1320.7,0.84319561]
[1673320153238,12.26678013,1320.8,1320.7,0.84319561]
[1673320153449,26.3161577,1320.8,1320.7,0.84319561]
[1673320153659,24.24249402,1320.8,1320.7,0.84319561]
[1673320154294,31.81365402,1320.8,1320.7,0.84319561]
[1673320155238,33.49636137,1320.8,1320.7,0.84319561]
[1673320155449,31.81365402,1320.8,1320.7,0.58974094]
[1673320155712,33.49636137,1320.8,1320.7,0.58974094]
[1673320157084,31.81365402,1320.8,1320.7,0.58974094]
[1673320157709,33.49636137,1320.8,1320.7,0.58974094]
[1673320158325,31.81365402,1320.8,1320.7,0.53974094]
[1673320158861,31.79748722,1320.8,1320.7,0.53974094]
[1673320159390,33.48019457,1320.8,1320.7,0.53974094]
[1673320161695,32.35834924,1320.8,1320.7,0.53974094]
[1673320162010,33.47967008,1320.8,1320.7,0.53974094]
[1673320162593,32.35834924,1320.8,1320.7,0.53974094]
[1673320164801,34.60309668,1320.8,1320.7,0.53974094]
[1673320165013,32.35834924,1320.8,1320.7,0.53974094]
[1673320165759,33.48030831,1320.8,1320.7,0.53974094]
[1673320165994,32.35834924,1320.8,1320.7,0.53974094]
[1673320166441,1.59817466,1320.8,1320.7,0.53974094]
[1673320166742,24.39618735,1320.8,1320.7,0.53974094]
[1673320166919,24.87235687,1320.8,1320.7,0.53974094]
[1673320167691,27.11710431,1320.8,1320.7,0.53974094]
[1673320168643,25.43439696,1320.8,1320.7,0.53974094]
[1673320168999,26.37316101,1320.8,1320.7,0.53974094]
[1673320170072,26.37893581,1320.8,1320.7,0.53974094]
[1673320170610,25.44017176,1320.8,1320.7,0.38055543]
[1673320172118,28.24610606,1320.8,1320.7,0.38055543]
[1673320172298,26.00817176,1320.8,1320.7,0.38055543]
[1673320173876,28.81410606,1320.8,1320.7,0.38055543]
[1673320174853,28.40393654,1320.8,1320.7,0.38055543]
[1673320175016,31.4012413,1320.8,1320.7,0.38055543]
[1673320179322,31.40666311,1320.8,1320.7,0.38055543]
[1673320179960,35.20432375,1320.8,1320.7,0.38055543]
[1673320180179,32.39296764,1320.8,1320.7,0.38055543]
[1673320181215,35.76378842,1320.8,1320.7,0.38055543]
[1673320181685,38.8730903,1320.8,1320.7,0.38055543]
[1673320183731,38.87273357,1320.8,1320.7,0.38055543]
[1673320185010,38.87273357,1320.8,1320.7,0.17971981]
[1673320185683,38.87273357,1320.8,1320.7,0.09252464]
[1673320187112,35.76378842,1320.8,1320.7,0.09252464]
[1673320187331,32.39296764,1320.8,1320.7,0.09252464]
[1673320187544,38.77155691,1320.8,1320.7,0.09252464]
[1673320189061,35.39296764,1320.8,1320.7,0.09252464]
[1673320190187,38.77343797,1320.8,1320.7,0.09252464]
[1673320190615,35.39296764,1320.8,1320.7,0.09252464]
[1673320191854,38.77460463,1320.8,1320.7,0.09252464]
[1673320193368,35.77460463,1320.8,1320.7,0.09252464]
[1673320194709,26.57706131,1320.8,1320.7,0.09252464]
[1673320195018,30.37472195,1320.8,1320.7,0.09252464]
[1673320198693,26.99308496,1320.8,1320.7,0.04407955]
[1673320198913,30.37524038,1320.8,1320.7,0.04407955]
[1673320199246,30.94324038,1320.8,1320.7,0.04407955]
[1673320199465,36.04454853,1320.8,1320.7,0.04407955]
[1673320200700,36.04454853,1320.8,1320.7,0.03154773]
[1673320203626,42.54454853,1320.8,1320.7,0.03154773]
[1673320204034,43.09833424,1320.8,1320.7,0.03154773]
[1673320205023,39.16239311,1320.8,1320.7,0.03154773]
[1673320205244,39.04437915,1320.8,1320.7,0.03154773]
[1673320205608,35.66239311,1320.8,1320.7,0.03154773]
[1673320206059,39.04457543,1320.8,1320.7,0.03154773]
[1673320206269,35.66239311,1320.8,1320.7,0.03154773]
[1673320208600,31.86473247,1320.8,1320.7,0.03154773]
[1673320208821,24.67613436,1320.8,1320.7,0.03154773]
[1673320209130,31.83712484,1320.8,1320.7,0.03154773]
[1673320209285,32.24729436,1320.8,1320.7,0.03154773]
[1673320211283,31.67929436,1320.8,1320.7,0.03154773]
[1673320214377,28.29673247,1320.8,1320.7,0.03154773]
[1673320215587,28.29673247,1320.8,1320.6,0.11123636]
[1673320215588,2.5,1320.7,1320.6,0.11123636]
[1673320215797,28.59836128,1320.7,1320.6,0.11123636]
[1673320216007,29.0745308,1320.7,1320.6,0.11123636]
[1673320216971,33.24980818,1320.7,1320.6,0.11123636]
[1673320217903,30.74980818,1320.7,1320.6,0.11123636]
[1673320221587,30.74980818,1320.7,1320.5,0.06578344]
[1673320221588,36.38632754,1320.7,1320.5,0.06578344]
[1673320221795,15.45332256,1320.6,1320.5,0.06578344]
[1673320222021,31.20176016,1320.6,1320.5,0.06578344]
[1673320222234,41.70099202,1320.6,1320.5,0.06578344]
[1673320223068,33.54389629,1320.6,1320.5,0.06578344]
[1673320223283,36.92634026,1320.6,1320.5,0.06578344]
[1673320224480,33.54389629,1320.6,1320.5,0.06578344]
[1673320225069,37.48999202,1320.6,1320.5,0.06578344]
[1673320225499,37.04389629,1320.6,1320.5,3.44e-06]
[1673320225754,2.5,1320.5,1320.1,6.72377382]
[1673320225968,2.81640501,1320.2,1320.1,3.066]
[1673320226129,2.81640501,1320.2,1320.1,3.0]
[1673320226130,10.39300501,1320.2,1320.1,3.0]
[1673320226485,10.45700501,1320.2,1320.1,3.0]
[1673320226653,2.88240501,1320.2,1320.1,3.0]
[1673320226879,1.126562,1320.2,1320.1,3.0]
[1673320227073,1.126562,1320.2,1320.1,14.09871069]
[1673320227286,1.126562,1320.2,1320.1,23.46089069]
[1673320227550,1.128562,1320.3,1320.1,34.52880295]
[1673320227760,1.126562,1320.3,1320.2,1.71]
[1673320227969,1.126562,1320.3,1320.2,4.21]
[1673320228128,1.126562,1320.3,1320.2,15.13710707]
[1673320228338,1.126562,1320.3,1320.2,5.12850707]
[1673320228580,1.126562,1320.3,1320.2,12.70310707]
[1673320228799,1.126562,1320.3,1320.2,5.12850707]
[1673320229548,1.126562,1320.3,1320.2,12.70310707]
[1673320230370,1.126562,1320.3,1320.2,20.27770707]
[1673320231915,2.81640501,1320.3,1320.2,20.27770707]
[1673320232138,1.126562,1320.3,1320.2,20.27770707]
[1673320234343,1.126562,1320.3,1320.2,16.9252]
[1673320235819,8.700592,1320.3,1320.2,0.066]
[1673320236033,8.700592,1320.3,1320.2,22.7238]
[1673320236034,1.192562,1320.3,1320.2,22.7238]
[1673320236236,1.126562,1320.3,1320.2,24.5138]
[1673320236636,1.126562,1320.3,1320.2,16.9392]
[1673320237062,1.126562,1320.3,1320.2,24.5138]
[1673320237391,2.81640501,1320.4,1320.2,16.9392]
[1673320237740,1.126562,1320.3,1320.2,20.448049]
[1673320237905,1.126562,1320.3,1320.2,28.022649]
[1673320238117,2.81640501,1320.4,1320.2,28.022649]
[1673320238325,2.81640501,1320.4,1320.2,20.448049]
[1673320238532,2.81640501,1320.4,1320.3,1.724]
[1673320238762,2.81640501,1320.4,1320.3,3.9412049]
[1673320238955,2.81640501,1320.4,1320.3,19.0892649]
[1673320239161,2.81640501,1320.4,1320.3,19.1552649]
[1673320239370,1.126562,1320.4,1320.3,19.1552649]
[1673320239621,2.81640501,1320.4,1320.3,26.7292949]
[1673320240382,1.126562,1320.4,1320.3,19.1552649]
[1673320240710,1.126562,1320.4,1320.3,11.5812349]
[1673320241290,10.38986501,1320.4,1320.3,4.0072049]
[1673320241501,18.02932501,1320.4,1320.3,1.724]
[1673320242343,2.88240501,1320.4,1320.3,1.724]
[1673320242552,1.68984301,1320.4,1320.3,1.724]
[1673320242759,2.81592793,1320.4,1320.3,1.724]
[1673320243004,16.83676301,1320.4,1320.2,1.79]
[1673320243212,1.12606034,1320.3,1320.2,1.724]
[1673320243443,23.84815034,1320.3,1320.2,1.724]
[1673320243640,23.91415034,1320.3,1320.2,1.724]
[1673320243813,8.76609034,1320.3,1320.2,1.724]
[1673320244024,16.34012034,1320.3,1320.2,1.724]
[1673320245627,1.19206034,1320.3,1320.2,1.724]
[1673320245809,1.12606034,1320.3,1320.2,1.724]
[1673320246175,2.81590335,1320.3,1320.1,12.6307]
[1673320246348,2.81590335,1320.3,1320.1,19.94019]
[1673320246565,2.81590335,1320.3,1320.1,12.36501]
[1673320247394,1.12606034,1320.3,1320.1,12.36501]
[1673320247844,2.81590335,1320.3,1320.1,4.79]
[1673320248060,2.81590335,1320.3,1320.1,4.724]
[1673320248386,2.81590335,1320.3,1320.1,19.87422]
[1673320248562,2.81590335,1320.3,1320.1,4.79]
[1673320248769,2.81590335,1320.3,1320.1,4.724]
[1673320249000,2.81590335,1320.3,1320.1,12.29918]
[1673320249223,2.81590335,1320.3,1320.1,19.94036]
[1673320250282,1.12606034,1320.3,1320.1,19.94036]
[1673320250709,1.12606034,1320.3,1320.1,12.36518]
[1673320250895,1.12606034,1320.3,1320.1,12.36504]
[1673320251232,1.12606034,1320.3,1320.1,19.94022]
[1673320251543,1.12606034,1320.3,1320.1,12.36504]
[1673320252665,1.12606034,1320.3,1320.1,19.94022]
[1673320253126,1.12606034,1320.3,1320.1,27.5154]
[1673320253300,1.12606034,1320.3,1320.1,19.94022]
[1673320254269,1.12606034,1320.3,1320.1,25.7914]
[1673320254638,1.12806034,1320.3,1320.1,25.7894]
[1673320254850,1.12806034,1320.3,1320.1,25.7914]
[1673320254851,1.12606034,1320.3,1320.1,25.7914]
[1673320255105,1.12606034,1320.3,1320.1,18.21622]
[1673320255535,2.81590335,1320.3,1320.1,18.21622]
[1673320257334,2.81590335,1320.3,1320.1,25.7914]
[1673320257494,2.81590335,1320.3,1320.1,18.21622]
[1673320257900,1.12606034,1320.3,1320.1,28.20988987]
[1673320258348,1.12606034,1320.3,1320.1,13.05952987]
[1673320258801,1.12606034,1320.3,1320.1,3.066]
[1673320258802,1.12606034,1320.2,1320.1,3.066]
[1673320258952,1.12606034,1320.2,1320.1,3.0]
[1673320260533,8.70066034,1320.2,1320.1,3.0]
[1673320260746,1.19206034,1320.2,1320.1,3.0]
[1673320261100,1.12606034,1320.2,1320.1,3.0]
[1673320261476,2.81590335,1320.2,1320.1,3.0]
[1673320263382,19.88788774,1320.2,1320.1,3.0]
[1673320263598,4.80468774,1320.2,1320.1,3.0]
[1673320263853,4.73868774,1320.2,1320.1,3.0]
[1673320264073,4.73868774,1320.2,1320.1,10.57518]
[1673320264384,1.12725947,1320.2,1320.1,25.79154]
[1673320264759,2.81710248,1320.2,1320.1,10.64118]
[1673320264963,2.81710248,1320.2,1320.1,18.21636]
[1673320265173,1.12725947,1320.2,1320.1,18.21636]
[1673320265838,1.12925947,1320.2,1320.1,3.064]
[1673320266168,1.12725947,1320.2,1320.1,3.0]
[1673320266594,2.81710248,1320.2,1320.1,3.0]
[1673320266781,1.12725947,1320.2,1320.1,3.0]
[1673320269745,8.70185947,1320.2,1320.1,3.0]
[1673320270054,8.76785947,1320.2,1320.1,3.0]
[1673320270212,2.88310248,1320.2,1320.1,3.0]
[1673320270419,10.39170248,1320.2,1320.1,3.0]
[1673320270737,10.45770248,1320.2,1320.1,3.0]
[1673320271630,18.03230248,1320.2,1320.1,3.0]
[1673320272413,25.60690248,1320.2,1320.1,3.0]
[1673320272879,18.03230248,1320.2,1320.0,25.9516869]
[1673320273315,25.60690248,1320.2,1320.0,25.9516869]
[1673320274344,18.442472,1320.2,1320.0,25.9516869]
[1673320274600,18.03230248,1320.2,1320.0,25.9516869]
[1673320274962,18.442472,1320.2,1320.0,25.9516869]
[1673320275653,26.017072,1320.2,1320.0,25.9516869]
[1673320275807,10.867872,1320.2,1320.0,25.9516869]
[1673320276017,10.45770248,1320.2,1320.0,29.90415423]
[1673320276347,10.45770248,1320.2,1320.0,32.31137188]
[1673320276709,1.19325947,1320.2,1320.0,10.31137188]
[1673320276897,1.12725947,1320.2,1320.0,29.90415423]
[1673320277100,1.12725947,1320.2,1320.0,32.31137188]
[1673320277279,1.12725947,1320.2,1320.0,33.44484402]
[1673320277489,1.12725947,1320.2,1320.0,32.31137188]
[1673320278329,8.70204947,1320.2,1320.0,32.31137188]
[1673320278541,8.76804947,1320.2,1320.0,32.31137188]
[1673320279395,16.34283947,1320.2,1320.0,32.31137188]
[1673320280111,18.43900029,1320.2,1320.0,32.31137188]
[1673320280593,10.45789248,1320.2,1320.0,32.31137188]
[1673320280897,18.03268248,1320.2,1320.0,32.31137188]
[1673320281061,16.34283947,1320.2,1320.0,32.31137188]
[1673320281272,10.45789248,1320.2,1320.0,32.31137188]
[1673320282215,10.45789248,1320.2,1320.0,28.35890455]
[1673320283317,2.88310248,1320.2,1320.0,25.9516869]
[1673320283490,2.88310248,1320.2,1320.0,28.35890455]
[1673320283491,10.39173248,1320.2,1320.0,28.35890455]
[1673320283712,10.45773248,1320.2,1320.0,28.35890455]
[1673320284350,18.03236248,1320.2,1320.0,25.9516869]
[1673320284988,10.45773248,1320.2,1320.0,25.9516869]
[1673320285196,10.45773248,1320.2,1320.0,28.35890455]
[1673320285197,8.76788947,1320.2,1320.0,28.35890455]
[1673320285416,10.45773248,1320.2,1320.0,28.35890455]
[1673320285624,10.45773248,1320.2,1320.0,25.9516869]
[1673320286160,18.03230248,1320.2,1320.0,25.9516869]
[1673320286334,18.43862029,1320.2,1320.0,3.9516869]
[1673320286541,1.12725947,1320.1,1320.0,3.8856869]
[1673320286769,1.12725947,1320.1,1320.0,3.883238]
[1673320286770,16.84020301,1320.1,1320.0,3.883238]
[1673320286997,24.48138301,1320.1,1320.0,3.883238]
[1673320287371,24.48138301,1320.1,1319.9,0.2165783]
[1673320287372,27.86106902,1320.1,1319.9,0.2165783]
[1673320287574,27.86106902,1320.1,1319.9,0.1505783]
[1673320287575,1.69052189,1320.0,1319.9,0.1505783]
[1673320287784,24.41777189,1320.0,1319.9,0.1505783]
[1673320288034,24.8900897,1320.0,1319.9,0.1505783]
[1673320288239,10.86484795,1320.0,1319.9,0.1505783]
[1673320288521,2.88278014,1320.0,1319.9,0.1505783]
[1673320288731,2.81678014,1320.0,1319.9,0.1505783]
[1673320288982,10.39253014,1320.0,1319.9,0.1505783]
[1673320289152,10.45853014,1320.0,1319.9,0.1505783]
[1673320289528,22.21745239,1320.0,1319.9,0.1505783]
[1673320289678,22.6237702,1320.0,1319.9,0.1505783]
[1673320290149,20.5269305,1320.0,1319.9,0.1505783]
[1673320290304,28.50825578,1320.0,1319.9,0.1505783]
[1673320290513,13.35675578,1320.0,1319.9,0.1505783]
[1673320290760,20.5269305,1320.0,1319.9,0.1505783]
[1673320290977,12.9511805,1320.0,1319.9,0.1505783]
[1673320291403,28.1026805,1320.0,1319.9,0.1505783]
[1673320291614,20.5269305,1320.0,1319.9,0.1505783]
[1673320292154,12.9511805,1320.0,1319.9,0.1505783]
[1673320292542,20.5269305,1320.0,1319.9,0.1505783]
[1673320292757,12.9511805,1320.0,1319.9,0.1505783]
[1673320293386,28.1026805,1320.0,1319.9,0.1505783]
[1673320293936,30.19865029,1320.0,1319.9,0.1505783]
[1673320294826,31.92265029,1320.0,1319.9,0.1505783]
[1673320295301,31.36479204,1320.0,1319.9,0.1505783]
[1673320295922,33.61791605,1320.0,1319.9,0.1505783]
[1673320296132,31.36479204,1320.0,1319.9,0.1505783]
[1673320296784,23.78904204,1320.0,1319.9,0.1505783]
[1673320296952,32.48964245,1320.0,1319.9,0.1505783]
[1673320297323,24.91389245,1320.0,1319.9,0.1505783]
[1673320297538,32.48964245,1320.0,1319.9,0.1505783]
[1673320298115,30.76564245,1320.0,1319.9,0.1505783]
[1673320298362,23.18989245,1320.0,1319.9,0.1005783]
[1673320299171,30.76564245,1320.0,1319.9,0.1005783]
[1673320300642,30.81564245,1320.0,1319.9,0.1005783]
[1673320302552,30.76564245,1320.0,1319.9,0.1005783]
[1673320307990,28.66967266,1320.0,1319.9,0.1005783]
[1673320308201,29.07524386,1320.0,1319.9,0.1005783]
[1673320308460,29.07524386,1320.0,1319.9,1.3825783]
[1673320308461,0.066,1320.0,1319.9,1.3825783]
[1673320308627,0.066,1320.2,1319.9,35.17415626]
[1673320308834,0.05,1320.2,1320.0,15.29766064]
[1673320309047,0.05,1320.2,1320.0,30.51447064]
[1673320309315,0.05,1320.2,1320.1,17.14455282]
[1673320309493,0.05,1320.2,1320.1,35.79991282]
[1673320309707,0.05,1320.2,1320.1,41.07391986]
[1673320310013,0.05,1320.2,1320.1,37.45170145]
[1673320310668,0.05,1320.2,1320.1,29.87652145]
[1673320310883,1.12485041,1320.5,1320.1,29.87652145]
[1673320311053,1.12485041,1320.5,1320.3,1.717]
[1673320311267,2.8153723,1320.5,1320.3,3.24086606]
[1673320311482,2.8153723,1320.5,1320.3,1.52386606]
[1673320312908,2.8173723,1320.5,1320.3,1.52386606]
[1673320313064,1.12485041,1320.5,1320.3,1.52386606]
[1673320313497,2.8153723,1320.5,1320.3,1.52386606]
[1673320313690,2.8153723,1320.5,1320.3,9.09781606]
[1673320313905,1.12485041,1320.5,1320.3,1.58986606]
[1673320314163,1.12485041,1320.5,1320.3,1.52386606]
[1673320315215,8.69779041,1320.5,1320.3,1.52386606]
[1673320315432,8.76379041,1320.5,1320.3,1.52386606]
[1673320316324,16.33673041,1320.5,1320.3,1.52386606]
[1673320316538,23.90967041,1320.5,1320.3,1.52386606]
[1673320317181,16.33673041,1320.5,1320.3,1.52386606]
[1673320318273,23.90961041,1320.5,1320.3,1.52386606]
[1673320318674,16.33667041,1320.5,1320.2,0.066]
[1673320318849,8.76373041,1320.5,1320.2,15.57454]
[1673320319062,8.76373041,1320.5,1320.2,15.64054]
[1673320320162,8.76373041,1320.5,1320.2,7.63841857]
[1673320320960,8.76373041,1320.5,1320.2,0.066]
[1673320321211,8.76373041,1320.5,1320.1,55.16335081]
[1673320321428,8.76373041,1320.5,1320.1,58.96101145]
[1673320321636,8.69862041,1320.4,1320.1,3.066]
[1673320321828,8.69862041,1320.4,1320.1,3.0]
[1673320321829,16.33839041,1320.4,1320.1,3.0]
[1673320322224,16.34416521,1320.4,1320.1,3.0]
[1673320322643,23.91793521,1320.4,1320.1,3.0]
[1673320322864,28.8740933,1320.4,1320.1,3.0]
[1673320323329,29.06006621,1320.4,1320.1,3.0]